fUST/lending_fUST_20250723
["ID","MTS","AMOUNT","RATE_DAILY","PERIOD"]
[374292596,1753266645875,-516.4,0.00021643,2]
[374292597,1753266645884,-463.89688741,0.00021643,2]
[374292598,1753266645894,-460.0,0.00021643,2]
[374292599,1753266645904,-366.30638691,0.00021643,2]
[374292600,1753266645913,-563.7,0.00021643,2]
[374292601,1753266645922,-460.0,0.00021643,2]
[374292602,1753266645931,-460.0,0.00021643,2]
[374292603,1753266645952,-570.94,0.00021643,2]
[374292604,1753266645969,-460.0,0.00021643,2]
[374292605,1753266645989,-460.0,0.00021643,2]
[374292606,1753266646008,-460.0,0.00021643,2]
[374292608,1753266646028,-460.0,0.00021643,2]
[374292611,1753266646045,-3906.94,0.00021643,2]
[374292613,1753266646064,-460.0,0.00021643,2]
[374292616,1753266646079,-460.0,0.00021643,2]
[374292618,1753266646096,-2272.97,0.00021643,2]
[374292621,1753266646114,-305.54769428,0.00021643,2]
[374292623,1753266646134,-656.48,0.00021643,2]
[374292625,1753266646147,-460.0,0.00021643,2]
[374292628,1753266646165,-460.0,0.00021643,2]
[374292630,1753266646180,-1015.4,0.00021643,2]
[374292633,1753266646196,-522.36,0.00021643,2]
[374292635,1753266646208,-2548.52,0.00021643,2]
[374292638,1753266646223,-16130.54,0.00021643,2]
[374292639,1753266646237,-464.75774092,0.00021643,2]
[374292640,1753266646252,-460.0,0.00021643,2]
[374292641,1753266646266,-460.0,0.00021643,2]
[374292642,1753266646280,-500.01,0.00021643,2]
[374292643,1753266646294,-601.3,0.00021643,2]
[374292644,1753266646309,-460.0,0.00021643,2]
[374292645,1753266646325,-460.0,0.00021643,2]
[374292646,1753266646339,-460.0,0.00021643,2]
[374292647,1753266646354,-460.0,0.00021643,2]
[374292648,1753266646368,-460.0,0.00021643,2]
[374292649,1753266646384,-4517.7,0.00021643,2]
[374292650,1753266646399,-1481.59,0.00021643,2]
[374292651,1753266646413,-3147.65,0.00021643,2]
[374292652,1753266646428,-460.0,0.00021643,2]
[374292653,1753266646442,-1132.24,0.00021643,2]
[374292654,1753266646457,-460.0,0.00021643,2]
[374292655,1753266646472,-466.57,0.00021643,2]
[374292656,1753266646485,-460.0,0.00021643,2]
[374292659,1753266646499,-460.0,0.00021643,2]
[374292661,1753266646514,-460.0,0.00021643,2]
[374292663,1753266646527,-1705.4,0.00021643,2]
[374292665,1753266646536,-790.07,0.00021643,2]
[374292667,1753266646547,-2782.39,0.00021643,2]
[374292669,1753266646556,-2118.81,0.00021643,2]
[374292671,1753266646566,-460.0,0.00021643,2]
[374292673,1753266646575,-460.0,0.00021643,2]
[374292675,1753266646585,-215.0738,0.00021663,2]
[374292676,1753266646595,-500.0,0.00021663,2]
[374292678,1753266646605,-500.0,0.00021663,2]
[374292680,1753266646615,-500.0,0.00021663,2]
[374292682,1753266646625,-500.0,0.00021663,2]
[374292683,1753266646634,-500.0,0.00021663,2]
[374292685,1753266646644,-151.0,0.00021663,2]
[374292687,1753266646656,-500.0,0.00021663,2]
[374292689,1753266646665,-500.0,0.00021663,2]
[374292691,1753266646675,-500.0,0.00021663,2]
[374292693,1753266646684,-500.0,0.00021663,2]
[374292695,1753266646694,-151.0,0.00021663,2]
[374292697,1753266646704,-500.0,0.00021663,2]
[374292700,1753266646713,-151.0,0.00021663,2]
[374292701,1753266646723,-500.0,0.00021663,2]
[374292702,1753266646732,-151.0,0.00021663,2]
[374292722,1753266646949,-500.0,0.00021663,2]
[374292723,1753266646969,-500.0,0.00021663,2]
[374292724,1753266646984,-151.0,0.00021663,2]
[374292725,1753266646993,-500.0,0.00021663,2]
[374292726,1753266647003,-151.0,0.00021663,2]
[374292727,1753266647012,-500.0,0.00021663,2]
[374292728,1753266647021,-151.0,0.00021663,2]
[374292729,1753266647030,-500.0,0.00021663,2]
[374292730,1753266647040,-151.0,0.00021663,2]
[374292731,1753266647049,-500.0,0.00021663,2]
[374292732,1753266647059,-151.0,0.00021663,2]
[374292733,1753266647068,-500.0,0.00021663,2]
[374292734,1753266647078,-151.0,0.00021663,2]
[374292735,1753266647087,-627.67361628,0.00021663,2]
[374292736,1753266647096,-151.0,0.00021663,2]
[374292737,1753266647106,-151.0,0.00021663,2]
[374292738,1753266647115,-151.0,0.00021663,2]
[374292739,1753266647125,-151.0,0.00021663,2]
[374292740,1753266647134,-151.0,0.00021663,2]
[374292741,1753266647144,-151.0,0.00021663,2]
[374292742,1753266647153,-151.0,0.00021663,2]
[374292743,1753266647162,-151.0,0.00021663,2]
[374292744,1753266647172,-151.0,0.00021663,2]
[374292745,1753266647181,-151.0,0.00021663,2]
[374292746,1753266647192,-151.0,0.00021663,2]
[374292747,1753266647201,-25000.0,0.00021663,2]
[374292748,1753266647211,-6691.44985412,0.00021663,2]
[374292749,1753266647221,-151.0,0.00021663,2]
[374292750,1753266647231,-151.0,0.00021663,2]
[374292751,1753266647240,-232.016584,0.00021663,2]
[374292752,1753266647253,-232.016584,0.00021663,2]
[374292753,1753266647263,-285.23802837,0.00021664,2]
[374292754,1753266647272,-360.0,0.00021696,2]
[374292755,1753266647282,-3770.06697013,0.000217,2]
[374292756,1753266647291,-10559.44545926,0.00021739,2]
[374292757,1753266647301,-1534.8713758,0.00021912,2]
[374292758,1753266647310,-3000.0,0.00021912,2]
[374292759,1753266647320,-460.0,0.00021917,2]
[374292760,1753266647329,-555.21,0.00021917,2]
[374292761,1753266647338,-460.0,0.00021917,2]
[374292762,1753266647348,-706.13,0.00021917,2]
[374292763,1753266647357,-460.0,0.00021917,2]
[374292764,1753266647366,-460.0,0.00021917,2]
[374292765,1753266647375,-460.0,0.00021917,2]
[374292766,1753266647384,-460.0,0.00021917,2]
[374292767,1753266647394,-460.0,0.00021917,2]
[374292768,1753266647402,-460.0,0.00021917,2]
[374292769,1753266647411,-479.21620065,0.00021917,2]
[374292770,1753266647421,-1951.91,0.00021917,2]
[374292771,1753266647430,-460.0,0.00021917,2]
[374292772,1753266647438,-460.0,0.00021917,2]
[374292773,1753266647448,-460.0,0.00021917,2]
[374292774,1753266647456,-460.0,0.00021917,2]
[374292775,1753266647465,-460.0,0.00021917,2]
[374292776,1753266647474,-460.0,0.00021917,2]
[374292777,1753266647483,-460.0,0.00021917,2]
[374292778,1753266647492,-489.58,0.00021917,2]
[374292779,1753266647501,-460.0,0.00021917,2]
[374292780,1753266647511,-647.91,0.00021917,2]
[374292781,1753266647520,-460.0,0.00021917,2]
[374292782,1753266647529,-534.82,0.00021917,2]
[374292783,1753266647538,-460.0,0.00021917,2]
[374292784,1753266647547,-460.0,0.00021917,2]
[374292785,1753266647556,-460.0,0.00021917,2]
[374292786,1753266647565,-3128.9,0.00021917,2]
[374292787,1753266647574,-460.0,0.00021917,2]
[374292788,1753266647584,-546.12,0.00021917,2]
[374292789,1753266647594,-516.4,0.00021917,2]
[374292790,1753266647603,-250.60818836,0.00021917,2]
[374292791,1753266647613,-563.7,0.00021917,2]
[374292792,1753266647622,-460.0,0.00021917,2]
[374292793,1753266647632,-460.0,0.00021917,2]
[374292794,1753266647642,-570.94,0.00021917,2]
[374292795,1753266647656,-460.0,0.00021917,2]
[374292796,1753266647665,-460.0,0.00021917,2]
[374292797,1753266647674,-460.0,0.00021917,2]
[374292798,1753266647684,-460.0,0.00021917,2]
[374292799,1753266647694,-3906.94,0.00021917,2]
[374292800,1753266647704,-460.0,0.00021917,2]
[374292801,1753266647714,-2272.97,0.00021917,2]
[374292802,1753266647723,-656.48,0.00021917,2]
[374292803,1753266647735,-460.0,0.00021917,2]
[374292804,1753266647744,-460.0,0.00021917,2]
[374292805,1753266647754,-1015.4,0.00021917,2]
[374292806,1753266647763,-522.36,0.00021917,2]
[374292807,1753266647772,-2548.52,0.00021917,2]
[374292808,1753266647782,-16130.54,0.00021917,2]
[374292809,1753266647791,-460.0,0.00021917,2]
[374292810,1753266647801,-460.0,0.00021917,2]
[374292811,1753266647810,-500.01,0.00021917,2]
[374292812,1753266647819,-601.3,0.00021917,2]
[374292813,1753266647829,-460.0,0.00021917,2]
[374292814,1753266647839,-460.0,0.00021917,2]
[374292815,1753266647848,-460.0,0.00021917,2]
[374292816,1753266647858,-460.0,0.00021917,2]
[374292817,1753266647867,-230.14,0.00021917,2]
[374292818,1753266647877,-4517.7,0.00021917,2]
[374292819,1753266647887,-1481.59,0.00021917,2]
[374292820,1753266647897,-3147.65,0.00021917,2]
[374292821,1753266647906,-460.0,0.00021917,2]
[374292822,1753266647915,-1132.24,0.00021917,2]
[374292823,1753266647924,-460.0,0.00021917,2]
[374292824,1753266647933,-151.0,0.00021917,2]
[374292825,1753266647942,-151.0,0.00021917,2]
[374292826,1753266647952,-460.0,0.00021917,2]
[374292827,1753266647962,-466.57,0.00021917,2]
[374292828,1753266647972,-596.71647768,0.00021917,2]
[374292829,1753266647982,-460.0,0.00021917,2]
[374292830,1753266647991,-1705.4,0.00021917,2]
[374292831,1753266648001,-790.07,0.00021917,2]
[374292832,1753266648010,-2782.39,0.00021917,2]
[374292833,1753266648020,-2118.81,0.00021917,2]
[374292834,1753266648029,-460.0,0.00021917,2]
[374292835,1753266648039,-1322.9240316,0.00021918,7]
[374292836,1753266648048,-150.46368495,0.00021918,2]
[374292837,1753266648058,-200.0,0.00021918,2]
[374292838,1753266648068,-156.13,0.0002192,4]
[374292839,1753266648078,-170.84,0.0002192,4]
[374292840,1753266648087,-199.3240378,0.0002192,4]
[374292841,1753266648097,-199.32,0.0002192,4]
[374292842,1753266648106,-200.0,0.00021999,2]
[374292843,1753266648116,-328.983663,0.00022,7]
[374292844,1753266648126,-328.983663,0.00022,7]
[374292845,1753266648136,-1594.62,0.00022,7]
[374292846,1753266648145,-65338.72,0.00022,2]
[374292847,1753266648155,-14025.46,0.00022,7]
[374292848,1753266648164,-3576.23,0.00022,7]
[374292849,1753266648174,-12622.36869388,0.00022,7]
[374292850,1753266648184,-151.0,0.00022,7]
[374292851,1753266648194,-151.0,0.00022,7]
[374292852,1753266648203,-476.696448,0.00022,7]
[374292853,1753266648213,-160.0,0.00022,7]
[374292854,1753266648222,-214.67886746,0.00022,7]
[374292855,1753266648232,-2013.85594129,0.00022,2]
[374292856,1753266648242,-20493.81048452,0.00022,2]
[374292857,1753266648251,-151.721524,0.00022,7]
[374292858,1753266648260,-150.0,0.00022019,2]
[374292859,1753266648269,-770.64813713,0.00022057,2]
[374292860,1753266648279,-151.0,0.00022162,7]
[374292861,1753266648288,-151.0,0.00022162,7]
[374292862,1753266648297,-151.0,0.00022162,7]
[374292863,1753266648307,-1500.0,0.00022176,2]
[374292864,1753266648316,-346.20847373,0.0002219,2]
[374292865,1753266648326,-460.0,0.00022191,2]
[374292866,1753266648335,-555.21,0.00022191,2]
[374292867,1753266648345,-706.13,0.00022191,2]
[374292868,1753266648354,-473.8932571,0.00022191,2]
[374292869,1753266648363,-460.0,0.00022191,2]
[374292870,1753266648374,-460.0,0.00022191,2]
[374292871,1753266648387,-460.0,0.00022191,2]
[374292872,1753266648398,-460.0,0.00022191,2]
[374292873,1753266648408,-1951.91,0.00022191,2]
[374292874,1753266648420,-460.0,0.00022191,2]
[374292875,1753266648431,-460.0,0.00022191,2]
[374292876,1753266648441,-460.0,0.00022191,2]
[374292877,1753266648451,-460.0,0.00022191,2]
[374292878,1753266648460,-460.0,0.00022191,2]
[374292879,1753266648470,-460.0,0.00022191,2]
[374292880,1753266648481,-460.0,0.00022191,2]
[374292881,1753266648492,-489.58,0.00022191,2]
[374292882,1753266648502,-460.0,0.00022191,2]
[374292883,1753266648512,-647.91,0.00022191,2]
[374292884,1753266648522,-415.02,0.00022191,2]
[374292885,1753266648532,-534.82,0.00022191,2]
[374292886,1753266648541,-460.0,0.00022191,2]
[374292887,1753266648551,-460.0,0.00022191,2]
[374292888,1753266648560,-460.0,0.00022191,2]
[374292889,1753266648570,-3128.9,0.00022191,2]
[374292890,1753266648579,-460.0,0.00022191,2]
[374292891,1753266648589,-546.12,0.00022191,2]
[374292892,1753266648599,-516.4,0.00022191,2]
[374292893,1753266648608,-563.7,0.00022191,2]
[374292894,1753266648617,-460.0,0.00022191,2]
[374292895,1753266648627,-460.0,0.00022191,2]
[374292896,1753266648636,-570.94,0.00022191,2]
[374292897,1753266648647,-460.0,0.00022191,2]
[374292898,1753266648659,-460.0,0.00022191,2]
[374292899,1753266648668,-460.0,0.00022191,2]
[374292900,1753266648678,-460.0,0.00022191,2]
[374292901,1753266648687,-3906.94,0.00022191,2]
[374292902,1753266648696,-460.0,0.00022191,2]
[374292903,1753266648706,-2272.97,0.00022191,2]
[374292904,1753266648715,-656.48,0.00022191,2]
[374292905,1753266648724,-460.0,0.00022191,2]
[374292906,1753266648734,-460.0,0.00022191,2]
[374292907,1753266648743,-1015.4,0.00022191,2]
[374292908,1753266648752,-522.36,0.00022191,2]
[374292909,1753266648762,-2548.52,0.00022191,2]
[374292910,1753266648772,-16130.54,0.00022191,2]
[374292911,1753266648781,-460.0,0.00022191,2]
[374292912,1753266648791,-460.0,0.00022191,2]
[374292913,1753266648801,-500.01,0.00022191,2]
[374292914,1753266648811,-601.3,0.00022191,2]
[374292915,1753266648820,-460.0,0.00022191,2]
[374292916,1753266648830,-460.0,0.00022191,2]
[374292917,1753266648839,-460.0,0.00022191,2]
[374292918,1753266648849,-460.0,0.00022191,2]
[374292919,1753266648858,-4517.7,0.00022191,2]
[374292920,1753266648868,-1481.59,0.00022191,2]
[374292921,1753266648878,-3147.65,0.00022191,2]
[374292922,1753266648888,-331.16,0.00022191,2]
[374292923,1753266648897,-1132.24,0.00022191,2]
[374292924,1753266648907,-460.0,0.00022191,2]
[374292925,1753266648916,-175.42131808,0.00022191,2]
[374292926,1753266648925,-466.57,0.00022191,2]
[374292927,1753266648934,-460.0,0.00022191,2]
[374292928,1753266648944,-1705.4,0.00022191,2]
[374292929,1753266648953,-790.07,0.00022191,2]
[374292930,1753266648962,-2782.39,0.00022191,2]
[374292931,1753266648972,-2118.81,0.00022191,2]
[374292932,1753266648981,-180.05127002,0.00022201,2]
[374292933,1753266648991,-217.73550934,0.00022211,2]
[374292934,1753266649000,-25000.0,0.00022211,2]
[374292935,1753266649009,-460.0,0.00022244,2]
[374292936,1753266649018,-3770.06697013,0.000223,2]
[374292937,1753266649027,-2367.6100132,0.0002246,2]
[374292938,1753266649036,-460.0,0.00022465,2]
[374292939,1753266649045,-555.21,0.00022465,2]
[374292940,1753266649054,-706.13,0.00022465,2]
[374292941,1753266649063,-460.0,0.00022465,2]
[374292942,1753266649073,-460.0,0.00022465,2]
[374292943,1753266649082,-460.0,0.00022465,2]
[374292944,1753266649091,-1951.91,0.00022465,2]
[374292945,1753266649101,-460.0,0.00022465,2]
[374292946,1753266649111,-460.0,0.00022465,2]
[374292947,1753266649121,-460.0,0.00022465,2]
[374292948,1753266649130,-460.0,0.00022465,2]
[374292949,1753266649140,-460.0,0.00022465,2]
[374292950,1753266649149,-460.0,0.00022465,2]
[374292951,1753266649158,-460.0,0.00022465,2]
[374292952,1753266649168,-489.58,0.00022465,2]
[374292953,1753266649177,-460.0,0.00022465,2]
[374292954,1753266649186,-647.91,0.00022465,2]
[374292955,1753266649195,-534.82,0.00022465,2]
[374292956,1753266649205,-460.0,0.00022465,2]
[374292957,1753266649214,-460.0,0.00022465,2]
[374292958,1753266649223,-460.0,0.00022465,2]
[374292959,1753266649233,-3128.9,0.00022465,2]
[374292960,1753266649242,-211.5186869,0.00022465,2]
[374292961,1753266649251,-546.12,0.00022465,2]
[374292962,1753266649260,-516.4,0.00022465,2]
[374292963,1753266649269,-563.7,0.00022465,2]
[374292964,1753266649279,-460.0,0.00022465,2]
[374292965,1753266649288,-574.98,0.00022465,2]
[374292966,1753266649297,-570.94,0.00022465,2]
[374292967,1753266649306,-236.449989,0.00022465,7]
[374292968,1753266649315,-460.0,0.00022465,2]
[374292969,1753266649325,-236.449989,0.00022465,7]
[374292970,1753266649334,-412.74,0.00022465,2]
[374292971,1753266649343,-460.0,0.00022465,2]
[374292972,1753266649352,-460.0,0.00022465,2]
[374292973,1753266649362,-449.486098,0.00022465,7]
[374292974,1753266649372,-449.486098,0.00022465,7]
[374292975,1753266649383,-3906.94,0.00022465,2]
[374292976,1753266649392,-460.0,0.00022465,2]
[374292977,1753266649402,-2272.97,0.00022465,2]
[374292978,1753266649412,-656.48,0.00022465,2]
[374292979,1753266649421,-460.0,0.00022465,2]
[374292980,1753266649430,-460.0,0.00022465,2]
[374292981,1753266649440,-1015.4,0.00022465,2]
[374292982,1753266649450,-522.36,0.00022465,2]
[374292983,1753266649459,-2548.52,0.00022465,2]
[374292984,1753266649468,-16130.54,0.00022465,2]
[374292985,1753266649478,-460.0,0.00022465,2]
[374292986,1753266649488,-460.0,0.00022465,2]
[374292987,1753266649498,-500.01,0.00022465,2]
[374292988,1753266649507,-601.3,0.00022465,2]
[374292989,1753266649517,-460.0,0.00022465,2]
[374292990,1753266649526,-460.0,0.00022465,2]
[374292991,1753266649535,-460.0,0.00022465,2]
[374292992,1753266649545,-460.0,0.00022465,2]
[374292993,1753266649554,-4517.7,0.00022465,2]
[374292994,1753266649563,-1481.59,0.00022465,2]
[374292995,1753266649573,-3147.65,0.00022465,2]
[374292996,1753266649582,-1132.24,0.00022465,2]
[374292997,1753266649592,-460.0,0.00022465,2]
[374292998,1753266649601,-466.57,0.00022465,2]
[374292999,1753266649610,-460.0,0.00022465,2]
[374293000,1753266649620,-2478.29,0.00022465,2]
[374293001,1753266649629,-1705.4,0.00022465,2]
[374293002,1753266649640,-790.07,0.00022465,2]
[374293003,1753266649652,-2782.39,0.00022465,2]
[374293004,1753266649662,-2118.81,0.00022465,2]
[374293005,1753266649671,-126666.80454153,0.0002249,7]
[374293006,1753266649680,-1007.44150255,0.000225,2]
[374293007,1753266649690,-300.0,0.00022567,2]
[374293008,1753266649699,-466.335271,0.00022603,2]
[374293009,1753266649709,-548.21195986,0.00022603,2]
[374293010,1753266649718,-371.34,0.00022649,2]
[374293011,1753266649728,-970.38,0.00022658,7]
[374293012,1753266649737,-1095.20899026,0.00022724,2]
[374293013,1753266649854,-460.0,0.00022739,2]
[374293014,1753266649864,-151.0,0.00022739,7]
[374293015,1753266649874,-555.21,0.00022739,2]
[374293016,1753266649886,-706.13,0.00022739,2]
[374293017,1753266649895,-460.0,0.00022739,2]
[374293018,1753266649904,-460.0,0.00022739,2]
[374293019,1753266649913,-460.0,0.00022739,2]
[374293020,1753266649922,-1951.91,0.00022739,2]
[374293021,1753266649931,-460.0,0.00022739,2]
[374293022,1753266649940,-460.0,0.00022739,2]
[374293023,1753266649949,-460.0,0.00022739,2]
[374293024,1753266649958,-460.0,0.00022739,2]
[374293025,1753266649967,-460.0,0.00022739,2]
[374293026,1753266649976,-198.82,0.00022739,2]
[374293027,1753266649985,-489.58,0.00022739,2]
[374293028,1753266649994,-460.0,0.00022739,2]
[374293029,1753266650004,-647.91,0.00022739,2]
[374293030,1753266650014,-534.82,0.00022739,2]
[374293031,1753266650024,-197.17826598,0.00022739,2]
[374293032,1753266650034,-460.0,0.00022739,2]
[374293033,1753266650043,-460.0,0.00022739,2]
[374293034,1753266650052,-3128.9,0.00022739,2]
[374293035,1753266650061,-546.12,0.00022739,2]
[374293036,1753266650071,-516.4,0.00022739,2]
[374293037,1753266650080,-563.7,0.00022739,2]
[374293038,1753266650090,-460.0,0.00022739,2]
[374293039,1753266650100,-570.94,0.00022739,2]
[374293040,1753266650109,-460.0,0.00022739,2]
[374293041,1753266650119,-460.0,0.00022739,2]
[374293042,1753266650129,-443.46108589,0.00022739,2]
[374293043,1753266650139,-3906.94,0.00022739,2]
[374293044,1753266650149,-460.0,0.00022739,2]
[374293045,1753266650159,-2272.97,0.00022739,2]
[374293046,1753266650168,-656.48,0.00022739,2]
[374293047,1753266650178,-460.0,0.00022739,2]
[374293048,1753266650187,-460.0,0.00022739,2]
[374293049,1753266650197,-1015.4,0.00022739,2]
[374293050,1753266650207,-522.36,0.00022739,2]
[374293051,1753266650217,-2548.52,0.00022739,2]
[374293052,1753266650227,-16130.54,0.00022739,2]
[374293053,1753266650237,-460.0,0.00022739,2]
[374293054,1753266650247,-500.01,0.00022739,2]
[374293055,1753266650257,-601.3,0.00022739,2]
[374293056,1753266650266,-460.0,0.00022739,2]
[374293057,1753266650276,-460.0,0.00022739,2]
[374293058,1753266650285,-460.0,0.00022739,2]
[374293059,1753266650295,-460.0,0.00022739,2]
[374293060,1753266650305,-4517.7,0.00022739,2]
[374293061,1753266650314,-1481.59,0.00022739,2]
[374293062,1753266650324,-3147.65,0.00022739,2]
[374293063,1753266650333,-1132.24,0.00022739,2]
[374293064,1753266650342,-576.88,0.00022739,2]
[374293065,1753266650352,-466.57,0.00022739,2]
[374293066,1753266650362,-460.0,0.00022739,2]
[374293067,1753266650371,-1705.4,0.00022739,2]
[374293068,1753266650382,-790.07,0.00022739,2]
[374293069,1753266650391,-2782.39,0.00022739,2]
[374293070,1753266650401,-2118.81,0.00022739,2]
[374293071,1753266650411,-153.0,0.0002274,2]
[374293072,1753266650420,-159.9205653,0.0002274,2]
[374293073,1753266650429,-970.38,0.00022758,7]
[374293074,1753266650439,-25000.0,0.00022759,2]
[374293075,1753266650448,-1040.34536374,0.0002277,2]
[374293076,1753266650457,-587.0,0.00022776,2]
[374293077,1753266650467,-27956.73254085,0.0002278,7]
[374293078,1753266650476,-560.0,0.00022792,2]
[374293079,1753266650485,-160.0,0.000228,7]
[374293080,1753266650494,-970.38,0.00022858,7]
[374293081,1753266650504,-14768.17626806,0.000229,7]
[374293082,1753266650514,-3770.06697013,0.00022901,2]
[374293083,1753266650523,-500.0,0.0002294,2]
[374293084,1753266650532,-500.0,0.0002294,2]
[374293085,1753266650542,-500.0,0.0002294,2]
[374293086,1753266650551,-500.0,0.0002294,2]
[374293087,1753266650561,-500.0,0.0002294,2]
[374293088,1753266650570,-500.0,0.0002294,2]
[374293089,1753266650579,-500.0,0.0002294,2]
[374293090,1753266650589,-970.38,0.00022958,5]
[374293091,1753266650598,-9021.27119351,0.0002298,2]
[374293092,1753266650608,-160.0,0.00023,3]
[374293093,1753266650618,-160.0,0.00023,3]
[374293094,1753266650627,-215.84326551,0.00023,3]
[374293095,1753266650637,-167.0,0.00023,7]
[374293096,1753266650646,-231.11583447,0.00023,3]
[374293097,1753266650657,-9810.06450645,0.00023,2]
[374293098,1753266650671,-15872.21103172,0.00023,10]
[374293099,1753266650681,-28383.84669877,0.00023,2]
[374293100,1753266650690,-526.15909479,0.00023,3]
[374293101,1753266650701,-160.0,0.00023,2]
[374293102,1753266650711,-555.21,0.00023013,2]
[374293103,1753266650720,-706.13,0.00023013,2]
[374293104,1753266650730,-460.0,0.00023013,2]
[374293105,1753266650740,-460.0,0.00023013,2]
[374293106,1753266650751,-1951.91,0.00023013,2]
[374293107,1753266650761,-460.0,0.00023013,2]
[374293108,1753266650772,-460.0,0.00023013,2]
[374293109,1753266650781,-460.0,0.00023013,2]
[374293110,1753266650790,-489.58,0.00023013,2]
[374293111,1753266650800,-460.0,0.00023013,2]
[374293112,1753266650810,-647.91,0.00023013,2]
[374293113,1753266650819,-534.82,0.00023013,2]
[374293114,1753266650828,-460.0,0.00023013,2]
[374293115,1753266650838,-460.0,0.00023013,2]
[374293116,1753266650847,-3128.9,0.00023013,2]
[374293117,1753266650856,-546.12,0.00023013,2]
[374293118,1753266650865,-516.4,0.00023013,2]
[374293119,1753266650874,-563.7,0.00023013,2]
[374293120,1753266650884,-460.0,0.00023013,2]
[374293121,1753266650893,-570.94,0.00023013,2]
[374293122,1753266650903,-197.24,0.00023013,2]
[374293123,1753266650912,-460.0,0.00023013,2]
[374293124,1753266650921,-3906.94,0.00023013,2]
[374293125,1753266650930,-460.0,0.00023013,2]
[374293126,1753266650940,-2272.97,0.00023013,2]
[374293127,1753266650949,-656.48,0.00023013,2]
[374293128,1753266650958,-460.0,0.00023013,2]
[374293129,1753266650968,-460.0,0.00023013,2]
[374293130,1753266650978,-1015.4,0.00023013,2]
[374293131,1753266650988,-522.36,0.00023013,2]
[374293132,1753266650998,-2548.52,0.00023013,2]
[374293133,1753266651009,-16130.54,0.00023013,2]
[374293134,1753266651019,-460.0,0.00023013,2]
[374293135,1753266651029,-500.01,0.00023013,2]
[374293136,1753266651038,-601.3,0.00023013,2]
[374293137,1753266651047,-460.0,0.00023013,2]
[374293138,1753266651057,-460.0,0.00023013,2]
[374293139,1753266651066,-460.0,0.00023013,2]
[374293140,1753266651076,-460.0,0.00023013,2]
[374293141,1753266651086,-4517.7,0.00023013,2]
[374293142,1753266651097,-1481.59,0.00023013,2]
[374293143,1753266651106,-3147.65,0.00023013,2]
[374293144,1753266651116,-1132.24,0.00023013,2]
[374293145,1753266651125,-466.57,0.00023013,2]
[374293146,1753266651134,-1705.4,0.00023013,2]
[374293147,1753266651143,-790.07,0.00023013,2]
[374293148,1753266651153,-2782.39,0.00023013,2]
[374293149,1753266651163,-2118.81,0.00023013,2]
[374293150,1753266651173,-223.0315306,0.00023032,2]
[374293151,1753266651182,-970.38,0.00023058,3]
[374293152,1753266651192,-160.0,0.000231,3]
[374293153,1753266651201,-160.0,0.000231,3]
[374293154,1753266651211,-970.38,0.00023158,4]
[374293155,1753266651220,-970.38,0.00023258,6]